fUSD/lending_fUSD_20250109
["ID","MTS","AMOUNT","RATE_DAILY","PERIOD"]
[348200702,1736383832605,-500.0,9.799e-05,2]
[348200704,1736383832614,-500.0,9.799e-05,2]
[348200706,1736383832624,-261.04975455,9.799e-05,2]
[348200947,1736383837897,-113.2532383,9.799e-05,2]
[348200948,1736383837907,-500.0,9.799e-05,2]
[348200949,1736383837916,-198.0980747,9.799e-05,2]
[348200952,1736383837952,-301.90192529,9.799e-05,2]
[348200953,1736383837961,-500.0,9.799e-05,2]
[348200954,1736383837970,-500.0,9.799e-05,2]
[348200955,1736383837980,-500.0,9.799e-05,2]
[348200956,1736383837989,-702.16,9.799e-05,2]
[348200957,1736383837997,-463.23873128,9.799e-05,2]
[348200958,1736383838007,-500.0,9.799e-05,2]
[348200959,1736383838018,-500.0,9.799e-05,2]
[348200960,1736383838027,-432.08145084,9.799e-05,2]
[348200961,1736383838036,-428.36262902,9.799e-05,2]
[348200962,1736383838047,-71.63737098,9.799e-05,2]
[348200963,1736383838056,-500.0,9.799e-05,2]
[348200964,1736383838065,-377.74946825,9.799e-05,2]
[348200965,1736383838075,-122.96316077,9.799e-05,2]
[348200966,1736383838086,-584.97850091,9.799e-05,2]
[348200967,1736383838098,-92.50833832,9.799e-05,2]
[348200968,1736383838107,-407.49166168,9.799e-05,2]
[348200969,1736383838119,-92.50833832,9.799e-05,2]
[348200970,1736383838129,-500.0,9.799e-05,2]
[348200971,1736383838139,-928.55,9.799e-05,2]
[348200972,1736383838149,-500.0,9.799e-05,2]
[348200973,1736383838160,-2152.84166168,9.799e-05,2]
[348200974,1736383838178,-887.98833832,9.799e-05,2]
[348200975,1736383838188,-540.17,9.799e-05,2]
[348200976,1736383838198,-1474.6,9.799e-05,2]
[348200977,1736383838208,-500.0,9.799e-05,2]
[348200978,1736383838218,-500.0,9.799e-05,2]
[348200979,1736383838227,-500.0,9.799e-05,2]
[348200980,1736383838237,-1983.54,9.799e-05,2]
[348200981,1736383838248,-500.81,9.799e-05,2]
[348200982,1736383838259,-1161.85,9.799e-05,2]
[348201004,1736383838490,-500.0,9.799e-05,2]
[348201006,1736383838500,-500.0,9.799e-05,2]
[348201008,1736383838510,-714.44166168,9.799e-05,2]
[348201011,1736383838527,-1387.43833832,9.799e-05,2]
[348201013,1736383838536,-500.0,9.799e-05,2]
[348201015,1736383838545,-437.810459,9.799e-05,2]
[348201017,1736383838554,-555.06,9.799e-05,2]
[348201019,1736383838563,-584.61,9.799e-05,2]
[348201021,1736383838572,-500.0,9.799e-05,2]
[348201023,1736383838582,-500.0,9.799e-05,2]
[348201025,1736383838591,-1183.95,9.799e-05,2]
[348201027,1736383838601,-500.0,9.799e-05,2]
[348201029,1736383838610,-500.0,9.799e-05,2]
[348201031,1736383838619,-1433.68,9.799e-05,2]
[348201033,1736383838629,-459.47552,9.799e-05,2]
[348201035,1736383838638,-680.84,9.799e-05,2]
[348201037,1736383838648,-500.0,9.799e-05,2]
[348201039,1736383838657,-1645.17,9.799e-05,2]
[348201041,1736383838666,-500.0,9.799e-05,2]
[348201043,1736383838675,-500.0,9.799e-05,2]
[348201045,1736383838685,-500.0,9.799e-05,2]
[348201047,1736383838694,-500.0,9.799e-05,2]
[348201049,1736383838703,-1440.85,9.799e-05,2]
[348201051,1736383838712,-868.16,9.799e-05,2]
[348201053,1736383838721,-597.38,9.799e-05,2]
[348201055,1736383838731,-500.0,9.799e-05,2]
[348201057,1736383838740,-500.0,9.799e-05,2]
[348201059,1736383838749,-500.0,9.799e-05,2]
[348201061,1736383838758,-500.0,9.799e-05,2]
[348201063,1736383838768,-500.0,9.799e-05,2]
[348201065,1736383838778,-500.0,9.799e-05,2]
[348201067,1736383838787,-500.0,9.799e-05,2]
[348201069,1736383838796,-1906.28,9.799e-05,2]
[348201071,1736383838805,-500.0,9.799e-05,2]
[348201073,1736383838814,-500.0,9.799e-05,2]
[348201075,1736383838823,-500.0,9.799e-05,2]
[348201077,1736383838833,-500.0,9.799e-05,2]
[348201079,1736383838842,-500.0,9.799e-05,2]
[348201081,1736383838852,-500.0,9.799e-05,2]
[348201083,1736383838860,-500.0,9.799e-05,2]
[348201085,1736383838870,-500.0,9.799e-05,2]
[348201087,1736383838880,-500.0,9.799e-05,2]
[348201089,1736383838888,-500.0,9.799e-05,2]
[348201091,1736383838897,-500.0,9.799e-05,2]
[348201093,1736383838906,-542.82,9.799e-05,2]
[348201095,1736383838915,-500.0,9.799e-05,2]
[348201097,1736383838924,-500.0,9.799e-05,2]
[348201099,1736383838933,-500.0,9.799e-05,2]
[348201101,1736383838942,-501.10658168,9.799e-05,2]
[348201103,1736383838951,-500.0,9.799e-05,2]
[348201105,1736383838961,-501.93483655,9.799e-05,2]
[348201107,1736383838970,-500.0,9.799e-05,2]
[348201109,1736383838979,-1174.13,9.799e-05,2]
[348201111,1736383838988,-500.0,9.799e-05,2]
[348201113,1736383838997,-500.0,9.799e-05,2]
[348201115,1736383839007,-159.43487413,9.799e-05,2]
[348201117,1736383839017,-500.0,9.799e-05,2]
[348201119,1736383839026,-500.0,9.799e-05,2]
[348201121,1736383839035,-500.0,9.799e-05,2]
[348201123,1736383839044,-500.0,9.799e-05,2]
[348201125,1736383839053,-2615.87,9.799e-05,2]
[348201127,1736383839062,-500.0,9.799e-05,2]
[348201129,1736383839071,-500.0,9.799e-05,2]
[348201131,1736383839080,-500.0,9.799e-05,2]
[348201133,1736383839089,-1099.82,9.799e-05,2]
[348201134,1736383839098,-500.0,9.799e-05,2]
[348201136,1736383839107,-500.0,9.799e-05,2]
[348201139,1736383839117,-1201245.0,9.8e-05,2]
[348201141,1736383839127,-800.0,9.8e-05,3]
[348201143,1736383839136,-406.5707,9.899e-05,2]
[348201145,1736383839145,-3241.1781,9.899e-05,2]
[348201147,1736383839155,-85832.3307,9.9e-05,2]
[348201149,1736383839165,-1000.0,9.9e-05,2]
[348201151,1736383839174,-2843.187,9.9e-05,2]
[348201153,1736383839183,-180.481,9.9e-05,2]
[348201155,1736383839192,-41256.2105,9.9e-05,2]
[348201157,1736383839202,-800.0,9.9e-05,3]
[348201159,1736383839211,-202.13626542,9.913e-05,2]
[348201160,1736383839220,-500.0,9.973e-05,2]
[348201163,1736383839230,-200.0,9.976e-05,2]
[348201165,1736383839241,-200.0,9.982e-05,2]
[348201167,1736383839253,-200.0,9.993e-05,2]
[348201169,1736383839263,-500.0,9.998e-05,2]
[348201171,1736383839272,-500.0,9.998e-05,2]
[348201173,1736383839282,-500.0,9.998e-05,2]
[348201175,1736383839291,-500.0,9.998e-05,2]
[348201177,1736383839301,-500.0,9.998e-05,2]
[348201179,1736383839310,-500.0,9.998e-05,2]
[348201181,1736383839319,-500.0,9.998e-05,2]
[348201183,1736383839328,-500.0,9.998e-05,2]
[348201185,1736383839338,-594.60045902,9.998e-05,2]
[348201187,1736383839347,-500.0,9.998e-05,2]
[348201189,1736383839356,-500.0,9.998e-05,2]
[348201191,1736383839365,-500.0,9.998e-05,2]
[348201193,1736383839377,-500.0,9.998e-05,2]
[348201195,1736383839391,-500.0,9.998e-05,2]
[348201197,1736383839401,-500.0,9.998e-05,2]
[348201199,1736383839410,-500.0,9.998e-05,2]
[348201201,1736383839419,-500.0,9.998e-05,2]
[348201203,1736383839430,-465.09974956,9.998e-05,2]
[348201205,1736383839439,-550.29,9.998e-05,2]
[348201206,1736383839448,-500.0,9.998e-05,2]
[348201209,1736383839458,-500.0,9.998e-05,2]
[348201210,1736383839468,-500.0,9.998e-05,2]
[348201213,1736383839478,-538.34,9.998e-05,2]
[348201214,1736383839487,-500.0,9.998e-05,2]
[348201217,1736383839496,-500.0,9.998e-05,2]
[348201219,1736383839506,-200.68,9.998e-05,2]
[348201220,1736383839515,-500.0,9.998e-05,2]
[348201222,1736383839524,-500.0,9.998e-05,2]
[348201224,1736383839533,-500.0,9.998e-05,2]
[348201226,1736383839542,-500.0,9.998e-05,2]
[348201227,1736383839551,-500.0,9.998e-05,2]
[348201228,1736383839560,-157.96,9.998e-05,2]
[348201229,1736383839570,-500.0,9.998e-05,2]
[348201230,1736383839579,-548.31,9.998e-05,2]
[348201231,1736383839587,-500.0,9.998e-05,2]
[348201232,1736383839597,-500.0,9.998e-05,2]
[348201233,1736383839606,-440.72,9.998e-05,2]
[348201234,1736383839615,-500.0,9.998e-05,2]
[348201236,1736383839627,-500.0,9.998e-05,2]
[348201238,1736383839636,-500.0,9.998e-05,2]
[348201240,1736383839645,-500.0,9.998e-05,2]
[348201242,1736383839655,-500.0,9.998e-05,2]
[348201244,1736383839664,-500.0,9.998e-05,2]
[348201246,1736383839673,-500.0,9.998e-05,2]
[348201248,1736383839682,-500.0,9.998e-05,2]
[348201250,1736383839691,-500.0,9.998e-05,2]
[348201252,1736383839700,-500.0,9.998e-05,2]
[348201254,1736383839708,-500.0,9.998e-05,2]
[348201256,1736383839717,-500.0,9.998e-05,2]
[348201258,1736383839727,-500.0,9.998e-05,2]
[348201260,1736383839737,-500.0,9.998e-05,2]
[348201262,1736383839746,-500.0,9.998e-05,2]
[348201264,1736383839755,-500.0,9.998e-05,2]
[348201266,1736383839765,-500.0,9.998e-05,2]
[348201268,1736383839774,-500.0,9.998e-05,2]
[348201270,1736383839783,-500.0,9.998e-05,2]
[348201273,1736383839792,-500.0,9.998e-05,2]
[348201275,1736383839801,-440.57,9.998e-05,2]
[348201277,1736383839810,-500.0,9.998e-05,2]
[348201279,1736383839819,-500.0,9.998e-05,2]
[348201281,1736383839828,-500.0,9.998e-05,2]
[348201282,1736383839838,-500.0,9.998e-05,2]
[348201285,1736383839848,-500.0,9.998e-05,2]
[348201287,1736383839857,-500.0,9.998e-05,2]
[348201289,1736383839866,-500.0,9.998e-05,2]
[348201291,1736383839876,-1669.98,9.998e-05,2]
[348201293,1736383839885,-500.0,9.998e-05,2]
[348201295,1736383839894,-508.08,9.998e-05,2]
[348201297,1736383839904,-500.0,9.998e-05,2]
[348201299,1736383839913,-2000.62,9.998e-05,2]
[348201300,1736383839922,-500.0,9.998e-05,2]
[348201302,1736383839932,-500.0,9.998e-05,2]
[348201304,1736383839941,-500.0,9.998e-05,2]
[348201307,1736383839951,-500.0,9.998e-05,2]
[348201309,1736383839960,-500.0,9.998e-05,2]
[348201312,1736383839969,-500.0,9.998e-05,2]
[348201314,1736383839978,-500.0,9.998e-05,2]
[348201316,1736383839987,-500.0,9.998e-05,2]
[348201318,1736383839997,-500.0,9.998e-05,2]
[348201319,1736383840007,-500.0,9.998e-05,2]
[348201321,1736383840017,-500.0,9.998e-05,2]
[348201323,1736383840026,-500.0,9.998e-05,2]
[348201325,1736383840035,-500.0,9.998e-05,2]
[348201327,1736383840045,-500.0,9.998e-05,2]
[348201329,1736383840054,-500.0,9.998e-05,2]
[348201331,1736383840063,-500.0,9.998e-05,2]
[348201333,1736383840072,-500.0,9.998e-05,2]
[348201335,1736383840082,-500.0,9.998e-05,2]
[348201337,1736383840091,-500.0,9.998e-05,2]
[348201339,1736383840100,-500.0,9.998e-05,2]
[348201341,1736383840109,-500.0,9.998e-05,2]
[348201343,1736383840119,-500.0,9.998e-05,2]
[348201345,1736383840129,-500.0,9.998e-05,2]
[348201347,1736383840139,-500.0,9.998e-05,2]
[348201349,1736383840147,-500.0,9.998e-05,2]
[348201351,1736383840157,-500.0,9.998e-05,2]
[348201353,1736383840166,-500.0,9.998e-05,2]
[348201355,1736383840175,-500.0,9.998e-05,2]
[348201357,1736383840184,-623.89,9.998e-05,2]
[348201359,1736383840194,-500.0,9.998e-05,2]
[348201361,1736383840204,-500.0,9.998e-05,2]
[348201363,1736383840214,-500.0,9.998e-05,2]
[348201365,1736383840224,-500.0,9.998e-05,2]
[348201367,1736383840233,-500.0,9.998e-05,2]
[348201369,1736383840242,-500.0,9.998e-05,2]
[348201370,1736383840251,-500.0,9.998e-05,2]
[348201372,1736383840261,-500.0,9.998e-05,2]
[348201374,1736383840271,-500.0,9.998e-05,2]
[348201376,1736383840280,-500.0,9.998e-05,2]
[348201378,1736383840290,-500.0,9.998e-05,2]
[348201380,1736383840300,-500.0,9.998e-05,2]
[348201382,1736383840310,-500.0,9.998e-05,2]
[348201384,1736383840320,-200.0,9.999e-05,2]
[348201386,1736383840329,-10661.15017819,9.999e-05,2]
[348201388,1736383840339,-1045.86359087,9.999e-05,3]
[348201390,1736383840348,-503.74832332,9.999e-05,2]
[348201392,1736383840358,-500.0,9.999e-05,2]
[348201394,1736383840368,-500.0,9.999e-05,2]
[348201396,1736383840380,-500.0,9.999e-05,2]
[348201398,1736383840392,-500.0,9.999e-05,2]
[348201400,1736383840401,-500.0,9.999e-05,2]
[348201402,1736383840410,-500.0,9.999e-05,2]
[348201404,1736383840419,-500.0,9.999e-05,2]
[348201407,1736383840430,-500.0,9.999e-05,2]
[348201408,1736383840440,-500.0,9.999e-05,2]
[348201410,1736383840449,-500.0,9.999e-05,2]
[348201412,1736383840459,-500.0,9.999e-05,2]
[348201414,1736383840468,-500.0,9.999e-05,2]
[348201416,1736383840478,-500.0,9.999e-05,2]
[348201418,1736383840488,-500.0,9.999e-05,2]
[348201421,1736383840497,-500.0,9.999e-05,2]
[348201422,1736383840507,-630.7878249,9.999e-05,2]
[348201424,1736383840516,-500.0,9.999e-05,2]
[348201426,1736383840525,-500.0,9.999e-05,2]
[348201428,1736383840535,-500.0,9.999e-05,2]
[348201430,1736383840544,-500.0,9.999e-05,2]
[348201432,1736383840554,-500.0,9.999e-05,2]
[348201435,1736383840564,-500.0,9.999e-05,2]
[348201437,1736383840573,-500.0,9.999e-05,2]
[348201439,1736383840582,-482.09018902,9.999e-05,2]
[348201440,1736383840591,-500.0,9.999e-05,2]
[348201442,1736383840600,-500.0,9.999e-05,2]
[348201444,1736383840609,-500.0,9.999e-05,2]
[348201446,1736383840618,-500.0,9.999e-05,7]
[348201447,1736383840631,-500.0,9.999e-05,2]
[348201449,1736383840640,-500.0,9.999e-05,2]
[348201451,1736383840650,-631.97854926,9.999e-05,2]
[348201452,1736383840659,-500.0,9.999e-05,2]
[348201453,1736383840668,-555.95,9.999e-05,2]
[348201454,1736383840678,-500.0,9.999e-05,2]
[348201455,1736383840687,-500.0,9.999e-05,2]
[348201456,1736383840696,-500.0,9.999e-05,2]
[348201457,1736383840706,-500.0,9.999e-05,2]
[348201458,1736383840715,-1119.82,9.999e-05,2]
[348201459,1736383840724,-575.34,9.999e-05,2]
[348201460,1736383840733,-500.0,9.999e-05,2]
[348201462,1736383840742,-500.0,9.999e-05,2]
[348201464,1736383840751,-524.12,9.999e-05,2]
[348201466,1736383840760,-500.0,9.999e-05,2]
[348201467,1736383840769,-536.04,9.999e-05,2]
[348201468,1736383840779,-2095.35,9.999e-05,2]
[348201469,1736383840788,-500.0,9.999e-05,2]
[348201470,1736383840797,-500.0,9.999e-05,2]
[348201471,1736383840807,-500.0,9.999e-05,2]
[348201472,1736383840816,-500.0,9.999e-05,2]
[348201473,1736383840826,-500.0,9.999e-05,2]
[348201474,1736383840835,-500.0,9.999e-05,2]
[348201475,1736383840844,-500.0,9.999e-05,2]
[348201476,1736383840853,-2651.0,9.999e-05,2]
[348201477,1736383840862,-500.0,9.999e-05,2]
[348201478,1736383840871,-500.0,9.999e-05,2]
[348201479,1736383840883,-374.01011871,9.999e-05,2]
[348201480,1736383840892,-1740.7,9.999e-05,2]
[348201481,1736383840902,-500.0,9.999e-05,2]
[348201482,1736383840911,-500.0,9.999e-05,2]
[348201483,1736383840920,-500.0,9.999e-05,2]
[348201484,1736383840931,-500.0,9.999e-05,2]
[348201485,1736383840941,-500.0,9.999e-05,2]
[348201486,1736383840951,-613.5,9.999e-05,2]
[348201487,1736383840961,-500.0,9.999e-05,2]
[348201488,1736383840970,-512.42,9.999e-05,2]
[348201489,1736383840980,-500.0,9.999e-05,2]
[348201490,1736383840989,-500.0,9.999e-05,2]
[348201491,1736383840998,-500.0,9.999e-05,2]
[348201492,1736383841008,-281.62316671,9.999e-05,2]
[348201493,1736383841018,-500.0,9.999e-05,2]
[348201494,1736383841028,-500.0,9.999e-05,2]
[348201495,1736383841038,-500.0,9.999e-05,2]
[348201496,1736383841047,-500.0,9.999e-05,2]
[348201497,1736383841057,-500.0,9.999e-05,2]
[348201498,1736383841066,-500.0,9.999e-05,2]
[348201499,1736383841075,-1172.84,9.999e-05,2]
[348201500,1736383841085,-500.0,9.999e-05,2]
[348201501,1736383841095,-500.0,9.999e-05,2]
[348201502,1736383841104,-512.37112356,9.999e-05,2]
[348201503,1736383841114,-659.28,9.999e-05,2]
[348201504,1736383841126,-500.0,9.999e-05,2]
[348201505,1736383841135,-712.25,9.999e-05,2]
[348201506,1736383841144,-153.59626886,9.999e-05,2]
[348201507,1736383841154,-500.0,9.999e-05,2]
[348201508,1736383841164,-500.0,9.999e-05,2]
[348201509,1736383841174,-500.0,9.999e-05,2]
[348201510,1736383841183,-500.0,9.999e-05,2]
[348201511,1736383841192,-571.01826654,9.999e-05,2]
[348201512,1736383841202,-500.0,9.999e-05,2]
[348201513,1736383841212,-435.8950328,9.999e-05,2]
[348201514,1736383841221,-500.0,9.999e-05,2]
[348201515,1736383841231,-500.0,9.999e-05,2]
[348201516,1736383841240,-500.0,9.999e-05,2]
[348201517,1736383841249,-500.0,9.999e-05,2]
[348201518,1736383841259,-439.16842612,9.999e-05,2]
[348201519,1736383841268,-1713.24,9.999e-05,2]
[348201520,1736383841278,-500.0,9.999e-05,2]
[348201521,1736383841287,-500.0,9.999e-05,2]
[348201522,1736383841296,-500.0,9.999e-05,2]
[348201523,1736383841305,-500.0,9.999e-05,2]
[348201524,1736383841315,-244.86939466,9.999e-05,2]
[348201525,1736383841324,-552.47545653,9.999e-05,2]
[348201526,1736383841334,-500.0,9.999e-05,2]
[348201527,1736383841343,-500.0,9.999e-05,2]
[348201528,1736383841352,-500.0,9.999e-05,2]
[348201529,1736383841362,-500.0,9.999e-05,2]
[348201530,1736383841372,-500.0,9.999e-05,2]
[348201531,1736383841384,-506.27369741,9.999e-05,2]
[348201532,1736383841394,-500.0,9.999e-05,2]
[348201533,1736383841403,-500.0,9.999e-05,2]
[348201534,1736383841413,-500.0,9.999e-05,2]
[348201535,1736383841423,-500.0,9.999e-05,2]
[348201536,1736383841432,-500.0,9.999e-05,2]
[348201537,1736383841442,-506.44241781,9.999e-05,2]
[348201538,1736383841453,-867.16,9.999e-05,2]
[348201539,1736383841465,-1081.84,9.999e-05,2]
[348201540,1736383841474,-943.7,9.999e-05,2]
[348201541,1736383841484,-932.13,9.999e-05,2]
[348201542,1736383841494,-500.0,9.999e-05,2]
[348201543,1736383841503,-645.86,9.999e-05,2]
[348201544,1736383841513,-588.24,9.999e-05,2]
[348201545,1736383841522,-1446.1,9.999e-05,2]
[348201546,1736383841531,-11248059.42782135,0.0001,2]
[348201547,1736383841547,-17157.5920601,0.0001,2]
[348201548,1736383841705,-683.52260615,0.0001,2]
[348201549,1736383841716,-443.19153326,0.0001,2]
[348201550,1736383841728,-1836.6,0.0001,2]
[348201551,1736383841745,-11401.6306497,0.0001,2]
[348201552,1736383841759,-4954.83552364,0.0001,2]
[348201553,1736383841776,-3002.84950921,0.0001,2]
[348201556,1736383843065,-500.0,9.799e-05,2]
[348201557,1736383843075,-49630.70468253,0.0001,2]
[348201558,1736383843087,-22962.09038652,0.0001,2]
[348201559,1736383843121,-763065.58181275,0.0001,2]
[348201560,1736383843177,-490.44403302,0.0001,2]
[348201561,1736383843189,-102027.55633108,0.0001,2]
[348201562,1736383843236,-1921882.17846795,0.0001,2]
[348201563,1736383846235,-500.0,9.799e-05,2]
[348201564,1736383846245,-1600.4,9.799e-05,2]
[348201565,1736383846256,-889.86,9.799e-05,2]
[348201566,1736383846265,-622.10170607,9.998e-05,2]
[348201567,1736383846275,-90942.82258655,0.0001,2]
[348201568,1736383846291,-4085.99495546,0.0001,2]
[348201569,1736383846302,-1522.9792,0.0001,2]
[348201570,1736383846313,-39999.96059999,0.0001,2]
[348201584,1736384617648,869.07,8.219e-05,2]
[348201617,1736385032350,-204.66,8.989e-05,2]
[348201618,1736385032360,-250.0,8.994e-05,2]
[348201619,1736385032370,-95.96852736,9.019e-05,2]
[348201620,1736385032382,-904.03147264,9.019e-05,2]
[348201621,1736385032391,-489.63,9.056e-05,2]
[348201622,1736385032401,-282.08598462,9.056e-05,2]
[348201623,1736385032411,-250.0,9.056e-05,2]
[348201624,1736385032421,-196.67,9.112e-05,2]
[348201625,1736385032430,-250.0,9.174e-05,2]
[348201626,1736385032440,-187.98,9.189e-05,2]
[348201627,1736385032450,-171.56,9.377e-05,2]
[348201628,1736385032461,-2055.7938,9.699e-05,2]
[348201629,1736385032471,-300.0,9.699e-05,2]
[348201630,1736385032481,-20860.7807,9.7e-05,2]
[348201631,1736385032491,-2764.281,9.7e-05,2]
[348201632,1736385032501,-176.47,9.7e-05,2]
[348201633,1736385032511,-500.0,9.799e-05,2]
[348201634,1736385032520,-500.0,9.799e-05,2]
[348201635,1736385032529,-500.0,9.799e-05,7]
[348201636,1736385032538,-366.4851182,9.799e-05,2]
[348201637,1736385032547,-500.0,9.799e-05,2]
[348201638,1736385032557,-500.0,9.799e-05,2]
[348201639,1736385032567,-831.03,9.799e-05,2]
[348201640,1736385032577,-268.83698558,9.799e-05,2]
[348201641,1736385032586,-500.0,9.799e-05,2]
[348201642,1736385032596,-500.0,9.799e-05,2]
[348201643,1736385032606,-1057.6,9.799e-05,2]
[348201644,1736385032615,-500.0,9.799e-05,2]
[348201645,1736385032624,-500.0,9.799e-05,2]
[348201646,1736385032633,-500.0,9.799e-05,2]
[348201647,1736385032643,-914.13,9.799e-05,2]
[348201648,1736385032653,-500.0,9.799e-05,2]
[348201649,1736385032663,-500.0,9.799e-05,2]
[348201650,1736385032673,-618.95,9.799e-05,2]
[348201651,1736385032683,-577.22,9.799e-05,2]
[348201652,1736385032692,-500.0,9.799e-05,2]
[348201653,1736385032701,-500.0,9.799e-05,2]
[348201654,1736385032710,-500.0,9.799e-05,2]
[348201655,1736385032719,-500.0,9.799e-05,2]
[348201656,1736385032729,-575.34273523,9.799e-05,2]
[348201657,1736385032738,-500.0,9.799e-05,2]
[348201658,1736385032747,-558.41,9.799e-05,2]
[348201659,1736385032756,-1958.21,9.799e-05,2]
[348201660,1736385032766,-2567.69,9.799e-05,2]
[348201661,1736385032775,-500.0,9.799e-05,2]
[348201662,1736385032785,-500.0,9.799e-05,2]
[348201663,1736385032795,-500.0,9.799e-05,2]
[348201664,1736385032804,-500.0,9.799e-05,2]
[348201665,1736385032814,-500.0,9.799e-05,2]
[348201666,1736385032824,-500.0,9.799e-05,2]
[348201667,1736385032832,-500.0,9.799e-05,2]
[348201668,1736385032842,-1144.8,9.799e-05,2]
[348201669,1736385032851,-500.0,9.799e-05,2]
[348201670,1736385032860,-500.0,9.799e-05,2]
[348201671,1736385032871,-500.0,9.799e-05,2]
[348201672,1736385032882,-500.0,9.799e-05,2]
[348201673,1736385032891,-500.0,9.799e-05,2]
[348201674,1736385032901,-1611.72,9.799e-05,2]
[348201675,1736385032911,-500.0,9.799e-05,2]
[348201676,1736385032922,-500.0,9.799e-05,2]
[348201677,1736385032931,-500.0,9.799e-05,2]
[348201678,1736385032942,-500.0,9.799e-05,2]
[348201679,1736385032952,-500.0,9.799e-05,2]
[348201680,1736385032962,-500.0,9.799e-05,2]
[348201681,1736385032972,-500.0,9.799e-05,2]
[348201682,1736385032982,-500.0,9.799e-05,2]
[348201683,1736385032991,-500.0,9.799e-05,2]
[348201684,1736385033000,-500.0,9.799e-05,2]
[348201685,1736385033010,-500.0,9.799e-05,2]
[348201686,1736385033019,-500.0,9.799e-05,2]
[348201687,1736385033029,-500.0,9.799e-05,2]
[348201688,1736385033039,-500.0,9.799e-05,2]
[348201689,1736385033049,-500.0,9.799e-05,2]
[348201690,1736385033058,-500.0,9.799e-05,2]
[348201691,1736385033067,-500.0,9.799e-05,2]
[348201692,1736385033076,-500.0,9.799e-05,2]
[348201693,1736385033087,-500.0,9.799e-05,2]
[348201694,1736385033096,-500.0,9.799e-05,2]
[348201695,1736385033106,-500.0,9.799e-05,2]
[348201696,1736385033116,-500.0,9.799e-05,2]
[348201697,1736385033125,-500.0,9.799e-05,2]
[348201698,1736385033135,-932.48,9.799e-05,2]
[348201699,1736385033145,-500.0,9.799e-05,2]
[348201700,1736385033155,-500.0,9.799e-05,2]
[348201701,1736385033165,-500.0,9.799e-05,2]
[348201702,1736385033174,-500.0,9.799e-05,2]
[348201703,1736385033184,-500.0,9.799e-05,2]
[348201704,1736385033193,-500.0,9.799e-05,2]
[348201705,1736385033202,-500.0,9.799e-05,2]
[348201706,1736385033210,-500.0,9.799e-05,2]
[348201707,1736385033219,-563.73,9.799e-05,2]
[348201708,1736385033229,-500.0,9.799e-05,2]
[348201709,1736385033239,-500.0,9.799e-05,2]
[348201710,1736385033248,-500.0,9.799e-05,2]
[348201711,1736385033258,-500.0,9.799e-05,2]
[348201712,1736385033267,-500.0,9.799e-05,2]
[348201713,1736385033277,-2950.86,9.799e-05,2]
[348201714,1736385033287,-517.67,9.799e-05,2]
[348201715,1736385033296,-775.06,9.799e-05,2]
[348201716,1736385033305,-500.0,9.799e-05,2]
[348201717,1736385033315,-500.0,9.799e-05,2]
[348201718,1736385033324,-974.18,9.799e-05,2]
[348201719,1736385033333,-1932.69,9.799e-05,2]
[348201720,1736385033342,-1113.44,9.799e-05,2]
[348201721,1736385033352,-500.0,9.799e-05,2]
[348201722,1736385033362,-1394.78,9.799e-05,2]
[348201723,1736385033372,-1597.46,9.799e-05,2]
[348201724,1736385033382,-1865.54,9.799e-05,2]
[348201725,1736385033392,-831.99,9.799e-05,2]
[348201726,1736385033402,-500.0,9.799e-05,2]
[348201727,1736385033410,-854.72,9.799e-05,2]
[348201728,1736385033420,-500.0,9.799e-05,2]
[348201729,1736385033429,-619.29,9.799e-05,2]
[348201730,1736385033440,-507.14,9.799e-05,2]
[348201731,1736385033449,-500.0,9.799e-05,2]
[348201732,1736385033460,-1134.62,9.799e-05,2]
[348201733,1736385033471,-1847.68,9.799e-05,2]
[348201734,1736385033481,-500.0,9.799e-05,2]
[348201735,1736385033490,-652.47,9.799e-05,2]